[Event "Early-Titled-Tuesday-Blitz-March-05-2024"]
[Site "Chess.com"]
[Date "2024.03.05"]
[Round "6"]
[White "Louis-Paulsen-Fan"]
[Black "Der_Balak_3Halak"]
[Result "1-0"]
[WhiteElo "2238"]
[BlackElo "2452"]
[TimeControl "180+1"]
[EndTime "9:09:30 PST"]
[Termination "Louis-Paulsen-Fan won by checkmate"]

1. d4 {[%clk 0:03:00.9]} 1... d5 {[%clk 0:03:00.1]} 2. Nf3 {[%clk 0:03:01]} 2...
Nf6 {[%clk 0:02:59.9]} 3. c4 {[%clk 0:03:01.2]} 3... c6 {[%clk 0:03:00.3]} 4.
Nc3 {[%clk 0:03:01.4]} 4... e6 {[%clk 0:03:00.6]} 5. Bg5 {[%clk 0:03:01]} 5...
Be7 {[%clk 0:03:00.4]} 6. e3 {[%clk 0:03:01.3]} 6... O-O {[%clk 0:03:00.6]} 7.
Bd3 {[%clk 0:03:01.5]} 7... dxc4 {[%clk 0:02:59.9]} 8. Bxc4 {[%clk 0:03:02.4]}
8... b5 {[%clk 0:03:00.5]} 9. Bb3 {[%clk 0:03:02.4]} 9... a5 {[%clk 0:02:59.9]}
10. O-O {[%clk 0:02:58.9]} 10... a4 {[%clk 0:02:57.9]} 11. Bc2 {[%clk
0:02:58.3]} 11... a3 {[%clk 0:02:57.1]} 12. b3 {[%clk 0:02:54.1]} 12... h6
{[%clk 0:02:55.6]} 13. Bh4 {[%clk 0:02:53.9]} 13... b4 {[%clk 0:02:44.8]} 14.
Ne2 {[%clk 0:02:49.2]} 14... Ba6 {[%clk 0:02:41.7]} 15. Re1 {[%clk 0:02:44.3]}
15... Nd5 {[%clk 0:02:40.9]} 16. Bg3 {[%clk 0:02:37.8]} 16... c5 {[%clk
0:02:06.6]} 17. Bd3 {[%clk 0:02:16.7]} 17... Nc6 {[%clk 0:01:41.7]} 18. Rc1
{[%clk 0:02:06.1]} 18... Qa5 {[%clk 0:01:01.4]} 19. e4 {[%clk 0:01:44.9]} 19...
Nf6 {[%clk 0:00:53.6]} 20. d5 {[%clk 0:01:42.1]} 20... exd5 {[%clk 0:00:46.2]}
21. exd5 {[%clk 0:01:42.2]} 21... Rfd8 {[%clk 0:00:34.9]} 22. Nf4 {[%clk
0:01:22]} 22... Bxd3 {[%clk 0:00:19.6]} 23. Qxd3 {[%clk 0:01:22.3]} 23... Bd6
{[%clk 0:00:17.8]} 24. Qc4 {[%clk 0:00:50.4]} 24... Bxf4 {[%clk 0:00:17]} 25.
Bxf4 {[%clk 0:00:49.7]} 25... Nxd5 {[%clk 0:00:17.6]} 26. Bd2 {[%clk 0:00:40.8]}
26... Nc3 {[%clk 0:00:17]} 27. Bxc3 {[%clk 0:00:37.2]} 27... bxc3 {[%clk
0:00:17.9]} 28. Rxc3 {[%clk 0:00:37.6]} 28... Nb4 {[%clk 0:00:13.7]} 29. Ne5
{[%clk 0:00:23.7]} 29... Ra7 {[%clk 0:00:10.9]} 30. h3 {[%clk 0:00:14.3]} 30...
Nxa2 {[%clk 0:00:10.5]} 31. Rce3 {[%clk 0:00:14.6]} 31... Re8 {[%clk 0:00:08]}
32. Nxf7 {[%clk 0:00:11.2]} 32... Rxe3 {[%clk 0:00:04.3]} 33. Ng5+ {[%clk
0:00:11.5]} 33... Kh8 {[%clk 0:00:03.6]} 34. Nf7+ {[%clk 0:00:08.2]} 34... Kh7
{[%clk 0:00:03.7]} 35. Rxe3 {[%clk 0:00:07.8]} 35... Rxf7 {[%clk 0:00:01.9]} 36.
Qxf7 {[%clk 0:00:06.2]} 36... Nc3 {[%clk 0:00:02.3]} 37. Re7 {[%clk 0:00:04.4]}
37... Ne2+ {[%clk 0:00:01.5]} 38. Kf1 {[%clk 0:00:02.6]} 38... Qc3 {[%clk
0:00:02.4]} 39. Kxe2 {[%clk 0:00:02.3]} 39... Qb2+ {[%clk 0:00:02.6]} 40. Kf3
{[%clk 0:00:01.8]} 40... a2 {[%clk 0:00:03.5]} 41. Qf5+ {[%clk 0:00:01.3]} 41...
Kg8 {[%clk 0:00:04.4]} 42. Re8# {[%clk 0:00:01.7]} 1-0

[Event "Early-Titled-Tuesday-Blitz-March-05-2024"]
[Site "Chess.com"]
[Date "2024.03.05"]
[Round "6"]
[White "Dyadya81"]
[Black "MITerryble"]
[Result "1/2-1/2"]
[WhiteElo "2887"]
[BlackElo "3029"]
[TimeControl "180+1"]
[EndTime "9:09:32 PST"]
[Termination "Game drawn by repetition"]

1. e4 {[%clk 0:03:00.9]} 1... e6 {[%clk 0:03:00.2]} 2. d4 {[%clk 0:03:00.7]}
2... d5 {[%clk 0:03:00.8]} 3. exd5 {[%clk 0:02:59]} 3... exd5 {[%clk 0:03:01.1]}
4. Nf3 {[%clk 0:02:59.7]} 4... Nc6 {[%clk 0:03:00.6]} 5. c3 {[%clk 0:02:56.9]}
5... Bd6 {[%clk 0:03:00.4]} 6. Bd3 {[%clk 0:02:56.7]} 6... Bg4 {[%clk 0:03:00]}
7. h3 {[%clk 0:02:56.5]} 7... Bh5 {[%clk 0:02:59.2]} 8. O-O {[%clk 0:02:50.2]}
8... Nge7 {[%clk 0:02:59.4]} 9. Nbd2 {[%clk 0:02:47.1]} 9... f6 {[%clk
0:02:57.7]} 10. Qc2 {[%clk 0:02:44.7]} 10... Bg6 {[%clk 0:02:56]} 11. Re1 {[%clk
0:02:44]} 11... O-O {[%clk 0:02:55.6]} 12. Nf1 {[%clk 0:02:38.9]} 12... Qd7
{[%clk 0:02:53.9]} 13. Bd2 {[%clk 0:02:35.8]} 13... Bxd3 {[%clk 0:02:49.3]} 14.
Qxd3 {[%clk 0:02:35.8]} 14... Qf5 {[%clk 0:02:49.9]} 15. Qxf5 {[%clk 0:02:34.6]}
15... Nxf5 {[%clk 0:02:50.1]} 16. Ne3 {[%clk 0:02:35.1]} 16... Nxe3 {[%clk
0:02:36.4]} 17. Rxe3 {[%clk 0:02:36]} 17... Kf7 {[%clk 0:02:35.6]} 18. Rae1
{[%clk 0:02:34.1]} 18... b5 {[%clk 0:02:27.2]} 19. Nh4 {[%clk 0:02:21.5]} 19...
g6 {[%clk 0:02:22.3]} 20. g4 {[%clk 0:02:09]} 20... a5 {[%clk 0:02:16.1]} 21.
Ng2 {[%clk 0:02:05.3]} 21... a4 {[%clk 0:02:15.6]} 22. Rf3 {[%clk 0:02:01.7]}
22... Rfe8 {[%clk 0:01:51.6]} 23. Kf1 {[%clk 0:01:51]} 23... Rxe1+ {[%clk
0:01:44.2]} 24. Kxe1 {[%clk 0:01:50.4]} 24... Na5 {[%clk 0:01:38]} 25. Bg5
{[%clk 0:01:40.7]} 25... Re8+ {[%clk 0:01:33.4]} 26. Kd1 {[%clk 0:01:35.4]}
26... Re6 {[%clk 0:01:31.7]} 27. Ne3 {[%clk 0:01:25.2]} 27... c6 {[%clk
0:01:22.6]} 28. Bh4 {[%clk 0:01:23.2]} 28... Nc4 {[%clk 0:01:17.9]} 29. Kc2
{[%clk 0:01:18.3]} 29... Kg7 {[%clk 0:00:44.6]} 30. b3 {[%clk 0:01:13.4]} 30...
Nb6 {[%clk 0:00:38.7]} 31. Bg3 {[%clk 0:01:05]} 31... Bxg3 {[%clk 0:00:37.5]}
32. Rxg3 {[%clk 0:01:05.9]} 32... Re8 {[%clk 0:00:37]} 33. Rg1 {[%clk
0:01:01.6]} 33... Kh6 {[%clk 0:00:34.5]} 34. h4 {[%clk 0:00:59.3]} 34... Kg7
{[%clk 0:00:33.5]} 35. Re1 {[%clk 0:00:53]} 35... Kf7 {[%clk 0:00:33]} 36. Rh1
{[%clk 0:00:52.4]} 36... Re4 {[%clk 0:00:28.7]} 37. Kd3 {[%clk 0:00:49.4]} 37...
Re8 {[%clk 0:00:27.8]} 38. Kc2 {[%clk 0:00:49.1]} 38... Ra8 {[%clk 0:00:27.1]}
39. Kb2 {[%clk 0:00:48.3]} 39... Ra7 {[%clk 0:00:27.4]} 40. h5 {[%clk
0:00:47.3]} 40... Kg7 {[%clk 0:00:26.3]} 41. Rh3 {[%clk 0:00:42.6]} 41... Ra8
{[%clk 0:00:20.6]} 42. Rh1 {[%clk 0:00:42.4]} 42... Ra7 {[%clk 0:00:20.7]} 43.
Rh2 {[%clk 0:00:42.7]} 43... Ra8 {[%clk 0:00:21.1]} 44. Rh3 {[%clk 0:00:43.2]}
44... Nd7 {[%clk 0:00:16.7]} 45. Nc2 {[%clk 0:00:37.3]} 45... axb3 {[%clk
0:00:10.6]} 46. axb3 {[%clk 0:00:37.1]} 46... c5 {[%clk 0:00:05.4]} 47. hxg6
{[%clk 0:00:37.6]} 47... hxg6 {[%clk 0:00:05.4]} 48. Re3 {[%clk 0:00:31.8]}
48... Kf7 {[%clk 0:00:04.6]} 49. Rh3 {[%clk 0:00:28.2]} 49... Kg7 {[%clk
0:00:04.7]} 50. Re3 {[%clk 0:00:20.6]} 50... Kf7 {[%clk 0:00:05]} 51. Rh3 {[%clk
0:00:17.9]} 51... Kg7 {[%clk 0:00:04.8]} 1/2-1/2

[Event "Early-Titled-Tuesday-Blitz-March-05-2024"]
[Site "Chess.com"]
[Date "2024.03.05"]
[Round "6"]
[White "stollenmonster"]
[Black "manitodeplomo"]
[Result "1/2-1/2"]
[WhiteElo "2884"]
[BlackElo "2714"]
[TimeControl "180+1"]
[EndTime "9:09:34 PST"]
[Termination "Game drawn by repetition"]

1. e4 {[%clk 0:03:00.9]} 1... e6 {[%clk 0:02:57.9]} 2. Nc3 {[%clk 0:03:00.6]}
2... c5 {[%clk 0:02:54.5]} 3. g3 {[%clk 0:03:01.5]} 3... a6 {[%clk 0:02:52.4]}
4. a4 {[%clk 0:02:59.2]} 4... Ne7 {[%clk 0:02:50.4]} 5. Bg2 {[%clk 0:02:59.6]}
5... Nec6 {[%clk 0:02:51]} 6. Nge2 {[%clk 0:02:59.8]} 6... Be7 {[%clk
0:02:51.3]} 7. d4 {[%clk 0:02:59]} 7... cxd4 {[%clk 0:02:51]} 8. Nxd4 {[%clk
0:02:59.9]} 8... O-O {[%clk 0:02:50.7]} 9. O-O {[%clk 0:02:59.5]} 9... d6 {[%clk
0:02:49]} 10. Be3 {[%clk 0:02:59.3]} 10... Nxd4 {[%clk 0:02:42.5]} 11. Qxd4
{[%clk 0:02:56.4]} 11... Nc6 {[%clk 0:02:43.4]} 12. Qd3 {[%clk 0:02:50.4]} 12...
Qc7 {[%clk 0:02:30.1]} 13. f4 {[%clk 0:02:39.8]} 13... Bd7 {[%clk 0:02:26.5]}
14. Rad1 {[%clk 0:02:28.4]} 14... Rac8 {[%clk 0:02:22]} 15. Kh1 {[%clk
0:02:13.4]} 15... Rfd8 {[%clk 0:02:18.9]} 16. g4 {[%clk 0:02:11.6]} 16... Be8
{[%clk 0:02:17.4]} 17. g5 {[%clk 0:02:11]} 17... Nb4 {[%clk 0:02:09.6]} 18. Qe2
{[%clk 0:02:10]} 18... b5 {[%clk 0:02:04.8]} 19. axb5 {[%clk 0:02:07.4]} 19...
axb5 {[%clk 0:02:05.7]} 20. f5 {[%clk 0:02:07.1]} 20... Qc4 {[%clk 0:01:54.8]}
21. Qf2 {[%clk 0:01:57.9]} 21... Nxc2 {[%clk 0:01:51.7]} 22. Qxc2 {[%clk
0:01:50.6]} 22... b4 {[%clk 0:01:50.8]} 23. g6 {[%clk 0:01:00.3]} 23... bxc3
{[%clk 0:01:43.6]} 24. gxf7+ {[%clk 0:00:55.7]} 24... Bxf7 {[%clk 0:01:43]} 25.
bxc3 {[%clk 0:00:56.4]} 25... Qxc3 {[%clk 0:01:38.7]} 26. Qf2 {[%clk 0:00:56.7]}
26... Bf6 {[%clk 0:01:28.8]} 27. Bf4 {[%clk 0:00:49.6]} 27... exf5 {[%clk
0:01:21.9]} 28. exf5 {[%clk 0:00:49.6]} 28... d5 {[%clk 0:01:21.8]} 29. Rfe1
{[%clk 0:00:38.4]} 29... Qc2 {[%clk 0:01:17.4]} 30. Qxc2 {[%clk 0:00:20.8]}
30... Rxc2 {[%clk 0:01:18.3]} 31. Be5 {[%clk 0:00:21.1]} 31... d4 {[%clk
0:01:11.4]} 32. Bxf6 {[%clk 0:00:20.7]} 32... gxf6 {[%clk 0:01:10.9]} 33. Be4
{[%clk 0:00:19.5]} 33... Rc3 {[%clk 0:01:06.3]} 34. Rd2 {[%clk 0:00:17.3]} 34...
Kf8 {[%clk 0:01:01.5]} 35. Bg2 {[%clk 0:00:13.1]} 35... Rc5 {[%clk 0:00:57.1]}
36. Rf1 {[%clk 0:00:08.4]} 36... Bb3 {[%clk 0:00:50]} 37. Kg1 {[%clk 0:00:08]}
37... Bc2 {[%clk 0:00:49.4]} 38. Rf4 {[%clk 0:00:06.9]} 38... Bxf5 {[%clk
0:00:44.7]} 39. Rfxd4 {[%clk 0:00:06.6]} 39... Rxd4 {[%clk 0:00:45]} 40. Rxd4
{[%clk 0:00:07.5]} 40... Bg6 {[%clk 0:00:36.4]} 41. Kf2 {[%clk 0:00:07]} 41...
Ke7 {[%clk 0:00:31.4]} 42. Bf3 {[%clk 0:00:05.8]} 42... Rc7 {[%clk 0:00:25.7]}
43. Rb4 {[%clk 0:00:05.4]} 43... Kf7 {[%clk 0:00:24.1]} 44. Kg3 {[%clk
0:00:05.4]} 44... Kg7 {[%clk 0:00:24.4]} 45. Kf4 {[%clk 0:00:05.8]} 45... Kh6
{[%clk 0:00:24.2]} 46. h4 {[%clk 0:00:06]} 46... Rc5 {[%clk 0:00:23.7]} 47. Rb6
{[%clk 0:00:04.6]} 47... Kg7 {[%clk 0:00:20.9]} 48. Rb7+ {[%clk 0:00:04.6]}
48... Kh6 {[%clk 0:00:21]} 49. Rb6 {[%clk 0:00:04.8]} 49... Kg7 {[%clk
0:00:17.5]} 50. Rb7+ {[%clk 0:00:04.6]} 50... Kh6 {[%clk 0:00:17.5]} 51. Rb6
{[%clk 0:00:04.9]} 1/2-1/2

[Event "Early-Titled-Tuesday-Blitz-March-05-2024"]
[Site "Chess.com"]
[Date "2024.03.05"]
[Round "6"]
[White "Orest_Vovk"]
[Black "salzikis"]
[Result "1-0"]
[WhiteElo "2554"]
[BlackElo "2408"]
[TimeControl "180+1"]
[EndTime "9:09:34 PST"]
[Termination "Orest_Vovk won by resignation"]

1. h4 {[%clk 0:02:55.2]} 1... e5 {[%clk 0:02:59.3]} 2. h5 {[%clk 0:02:55.5]}
2... d5 {[%clk 0:02:59.5]} 3. h6 {[%clk 0:02:55.7]} 3... Nxh6 {[%clk 0:02:58.7]}
4. d4 {[%clk 0:02:56.3]} 4... e4 {[%clk 0:02:54.8]} 5. Bxh6 {[%clk 0:02:56.9]}
5... gxh6 {[%clk 0:02:55.2]} 6. e3 {[%clk 0:02:57.8]} 6... Bf5 {[%clk
0:02:53.2]} 7. c4 {[%clk 0:02:58.1]} 7... c6 {[%clk 0:02:53.2]} 8. Nc3 {[%clk
0:02:58.1]} 8... Be6 {[%clk 0:02:53.6]} 9. Qb3 {[%clk 0:02:58.4]} 9... Qb6
{[%clk 0:02:53.2]} 10. Nge2 {[%clk 0:02:51]} 10... Nd7 {[%clk 0:02:47.4]} 11.
Nf4 {[%clk 0:02:47.8]} 11... dxc4 {[%clk 0:02:28.3]} 12. Bxc4 {[%clk 0:02:37.2]}
12... Qxb3 {[%clk 0:02:27.3]} 13. axb3 {[%clk 0:02:34.2]} 13... Bxc4 {[%clk
0:02:26.6]} 14. bxc4 {[%clk 0:02:33.6]} 14... f5 {[%clk 0:02:25.4]} 15. Rh5
{[%clk 0:02:31.8]} 15... Bb4 {[%clk 0:02:18.9]} 16. Rxf5 {[%clk 0:02:30]} 16...
O-O-O {[%clk 0:02:15]} 17. Rxa7 {[%clk 0:02:26.8]} 17... Kb8 {[%clk 0:02:10.5]}
18. Ra4 {[%clk 0:02:26.1]} 18... c5 {[%clk 0:02:09.9]} 19. Rxb4 {[%clk
0:02:14.9]} 19... cxb4 {[%clk 0:02:09.1]} 20. Nxe4 {[%clk 0:02:15.2]} 20... Rhg8
{[%clk 0:01:59.4]} 21. Nf6 {[%clk 0:02:05.4]} 21... Nxf6 {[%clk 0:01:48.3]} 22.
Rxf6 {[%clk 0:02:05.7]} 22... Rgf8 {[%clk 0:01:39.8]} 23. Rxh6 {[%clk
0:02:01.7]} 23... Rf7 {[%clk 0:01:37.9]} 24. g3 {[%clk 0:01:59.2]} 24... Rc8
{[%clk 0:01:28.4]} 25. b3 {[%clk 0:01:52.6]} 25... Rc6 {[%clk 0:01:29]} 26. Rh5
{[%clk 0:01:51.1]} 26... Ra6 {[%clk 0:01:27.9]} 27. Rb5 {[%clk 0:01:49.9]} 27...
Ra1+ {[%clk 0:01:27.1]} 28. Ke2 {[%clk 0:01:50]} 28... Ka7 {[%clk 0:01:22.7]}
29. Rxb4 {[%clk 0:01:49.8]} 29... b6 {[%clk 0:01:19.6]} 30. Kf3 {[%clk
0:01:44.7]} 30... Ka6 {[%clk 0:01:19.3]} 31. c5 {[%clk 0:01:38.7]} 31... bxc5
{[%clk 0:01:15.6]} 32. dxc5 {[%clk 0:01:38.6]} 32... Rc1 {[%clk 0:01:15.8]} 33.
Rb6+ {[%clk 0:01:38.1]} 33... Ka5 {[%clk 0:01:12.2]} 34. b4+ {[%clk 0:01:39]}
34... Ka4 {[%clk 0:01:12.5]} 35. c6 {[%clk 0:01:36.7]} 35... Rc2 {[%clk
0:01:06.6]} 36. Rb7 {[%clk 0:01:21.7]} 36... Rf6 {[%clk 0:01:00.6]} 37. b5
{[%clk 0:01:18.8]} 37... Ka5 {[%clk 0:00:59.2]} 38. e4 {[%clk 0:01:07.2]} 38...
Rc5 {[%clk 0:00:55.7]} 39. c7 {[%clk 0:00:58.3]} 39... Rb6 {[%clk 0:00:55.5]}
40. Ra7+ {[%clk 0:00:41]} 40... Kxb5 {[%clk 0:00:55.1]} 41. Nd5 {[%clk
0:00:41.2]} 41... Rbc6 {[%clk 0:00:55]} 42. Ke3 {[%clk 0:00:32.2]} 42... Kc4
{[%clk 0:00:55]} 43. f4 {[%clk 0:00:25.4]} 43... Rxd5 {[%clk 0:00:54.9]} 44.
exd5 {[%clk 0:00:24.7]} 44... Kxd5 {[%clk 0:00:55.6]} 45. c8=R {[%clk 0:00:22]}
45... Rxc8 {[%clk 0:00:55.3]} 46. Rxh7 {[%clk 0:00:21.9]} 46... Rc3+ {[%clk
0:00:55.9]} 47. Kf2 {[%clk 0:00:21.7]} 47... Ke4 {[%clk 0:00:52.9]} 48. Re7+
{[%clk 0:00:21.6]} 48... Kf5 {[%clk 0:00:53.2]} 49. Re5+ {[%clk 0:00:22.2]}
49... Kf6 {[%clk 0:00:53.7]} 50. Ra5 {[%clk 0:00:22.1]} 50... Rb3 {[%clk
0:00:53.3]} 51. Kg2 {[%clk 0:00:22.4]} 51... Kg6 {[%clk 0:00:50.8]} 52. Kh3
{[%clk 0:00:22.5]} 52... Rb6 {[%clk 0:00:50.8]} 53. Kg4 {[%clk 0:00:21.4]} 53...
Rc6 {[%clk 0:00:51.2]} 54. Rb5 {[%clk 0:00:20.7]} 54... Ra6 {[%clk 0:00:51]} 55.
Rh5 {[%clk 0:00:20.4]} 55... Rc6 {[%clk 0:00:49.8]} 56. f5+ {[%clk 0:00:20.4]}
56... Kg7 {[%clk 0:00:49]} 57. Kg5 {[%clk 0:00:21.2]} 57... Rc4 {[%clk
0:00:45.6]} 58. g4 {[%clk 0:00:21.5]} 58... Rc7 {[%clk 0:00:44.2]} 59. f6+
{[%clk 0:00:20.6]} 59... Kg8 {[%clk 0:00:43.6]} 60. Kg6 {[%clk 0:00:20.6]} 60...
Rg7+ {[%clk 0:00:43.8]} 61. Kf5 {[%clk 0:00:20.4]} 61... Rb7 {[%clk 0:00:43.9]}
62. g5 {[%clk 0:00:20.5]} 62... Rb5+ {[%clk 0:00:42.8]} 63. Kg6 {[%clk
0:00:20.8]} 63... Rb7 {[%clk 0:00:42.9]} 64. f7+ {[%clk 0:00:15.9]} 64... Rxf7
{[%clk 0:00:41.1]} 65. Rh8+ {[%clk 0:00:15.8]} 65... Kxh8 {[%clk 0:00:41.9]} 66.
Kxf7 {[%clk 0:00:15.8]} 66... Kh7 {[%clk 0:00:42.8]} 67. g6+ {[%clk 0:00:16.1]}
67... Kh6 {[%clk 0:00:43.7]} 68. g7 {[%clk 0:00:16.4]} 68... Kg5 {[%clk
0:00:44.6]} 69. g8=Q+ {[%clk 0:00:16.3]} 1-0

[Event "Early-Titled-Tuesday-Blitz-March-05-2024"]
[Site "Chess.com"]
[Date "2024.03.05"]
[Round "6"]
[White "isaak2009"]
[Black "Coach_Istvanovszki"]
[Result "1-0"]
[WhiteElo "2767"]
[BlackElo "2456"]
[TimeControl "180+1"]
[EndTime "9:09:35 PST"]
[Termination "isaak2009 won by resignation"]

1. d4 {[%clk 0:03:00.9]} 1... g6 {[%clk 0:02:59.7]} 2. e4 {[%clk 0:03:00.7]}
2... Bg7 {[%clk 0:03:00]} 3. Nc3 {[%clk 0:02:59.9]} 3... c5 {[%clk 0:02:57.4]}
4. Be3 {[%clk 0:02:55.5]} 4... Qa5 {[%clk 0:02:55.5]} 5. Nf3 {[%clk 0:02:51.9]}
5... Nf6 {[%clk 0:02:55.2]} 6. h3 {[%clk 0:02:27.4]} 6... Nxe4 {[%clk
0:02:47.6]} 7. Bd3 {[%clk 0:02:19]} 7... cxd4 {[%clk 0:02:39.4]} 8. Bxe4 {[%clk
0:02:10]} 8... dxe3 {[%clk 0:02:36]} 9. O-O {[%clk 0:02:09.5]} 9... exf2+ {[%clk
0:02:26.7]} 10. Rxf2 {[%clk 0:02:10.4]} 10... O-O {[%clk 0:02:26.5]} 11. Qd2
{[%clk 0:01:57.7]} 11... Nc6 {[%clk 0:02:21.7]} 12. Re1 {[%clk 0:01:56.3]} 12...
e6 {[%clk 0:02:03.7]} 13. Bd3 {[%clk 0:01:42.4]} 13... d5 {[%clk 0:01:55.8]} 14.
Qd1 {[%clk 0:01:36.5]} 14... Bd7 {[%clk 0:01:50]} 15. h4 {[%clk 0:01:35.2]}
15... Rac8 {[%clk 0:01:47.8]} 16. h5 {[%clk 0:01:34.7]} 16... Nb4 {[%clk
0:01:42.4]} 17. hxg6 {[%clk 0:01:31.2]} 17... fxg6 {[%clk 0:01:42.4]} 18. Rfe2
{[%clk 0:01:26.4]} 18... Nxd3 {[%clk 0:01:41.5]} 19. cxd3 {[%clk 0:01:24.4]}
19... Bxc3 {[%clk 0:01:28.5]} 20. bxc3 {[%clk 0:01:25.3]} 20... Qxc3 {[%clk
0:01:29]} 21. d4 {[%clk 0:01:16.1]} 21... Rf4 {[%clk 0:01:19.2]} 22. Re3 {[%clk
0:01:08.8]} 22... Qc2 {[%clk 0:01:09.8]} 23. Qa1 {[%clk 0:01:05.5]} 23... Rcf8
{[%clk 0:01:06.9]} 24. Rc1 {[%clk 0:00:59.5]} 24... Qf5 {[%clk 0:01:03.7]} 25.
Rc7 {[%clk 0:00:58.3]} 25... Rf7 {[%clk 0:01:00.3]} 26. Rxb7 {[%clk 0:00:53.5]}
26... g5 {[%clk 0:00:50.5]} 27. Re5 {[%clk 0:00:40.1]} 27... Qf6 {[%clk
0:00:36.7]} 28. Rxg5+ {[%clk 0:00:37.5]} 28... Kh8 {[%clk 0:00:36.9]} 29. Qb2
{[%clk 0:00:24.7]} 29... h6 {[%clk 0:00:35.7]} 30. Rg3 {[%clk 0:00:20.2]} 30...
Re4 {[%clk 0:00:27.4]} 31. Rb8+ {[%clk 0:00:13.2]} 31... Kh7 {[%clk 0:00:27.5]}
32. Qb1 {[%clk 0:00:08.4]} 32... Qf5 {[%clk 0:00:22.4]} 33. Qc1 {[%clk
0:00:03.7]} 33... Rf4 {[%clk 0:00:18]} 34. Qc7 {[%clk 0:00:02.1]} 34... Rg4
{[%clk 0:00:13]} 35. Rxg4 {[%clk 0:00:02.3]} 35... Qxg4 {[%clk 0:00:13.5]} 36.
Qd8 {[%clk 0:00:02.4]} 36... Rxf3 {[%clk 0:00:12.1]} 37. Qh8+ {[%clk 0:00:02.1]}
37... Kg6 {[%clk 0:00:12.1]} 38. Rg8+ {[%clk 0:00:02.2]} 38... Kh5 {[%clk
0:00:12.7]} 39. Rxg4 {[%clk 0:00:02.8]} 39... Re3 {[%clk 0:00:12.1]} 40. Rg7
{[%clk 0:00:03]} 40... Re4 {[%clk 0:00:12.2]} 41. Kh2 {[%clk 0:00:03.5]} 41...
Bb5 {[%clk 0:00:10.8]} 42. Kg3 {[%clk 0:00:03.2]} 42... Bf1 {[%clk 0:00:11.3]}
43. Rh7 {[%clk 0:00:03.1]} 43... Re2 {[%clk 0:00:11]} 44. Rxh6+ {[%clk
0:00:03.1]} 44... Kg5 {[%clk 0:00:11.9]} 45. Qg7+ {[%clk 0:00:03.7]} 45... Kf5
{[%clk 0:00:12.5]} 46. Qf6+ {[%clk 0:00:04.1]} 46... Ke4 {[%clk 0:00:13.2]} 47.
Qxf1 {[%clk 0:00:04.8]} 47... Re3+ {[%clk 0:00:13.4]} 48. Kf2 {[%clk 0:00:05]}
48... Rd3 {[%clk 0:00:13.8]} 49. Rh4+ {[%clk 0:00:05.5]} 49... Kf5 {[%clk
0:00:13.7]} 50. Ke2+ {[%clk 0:00:06.1]} 50... Kg5 {[%clk 0:00:14.6]} 51. Kxd3
{[%clk 0:00:06.5]} 1-0

[Event "Early-Titled-Tuesday-Blitz-March-05-2024"]
[Site "Chess.com"]
[Date "2024.03.05"]
[Round "6"]
[White "wonderfultime"]
[Black "Chessmissile07"]
[Result "1-0"]
[WhiteElo "3043"]
[BlackElo "2913"]
[TimeControl "180+1"]
[EndTime "9:09:38 PST"]
[Termination "wonderfultime won on time"]

1. d4 {[%clk 0:02:49.9]} 1... a6 {[%clk 0:03:00.9]} 2. e4 {[%clk 0:02:47.6]}
2... d5 {[%clk 0:03:00.3]} 3. exd5 {[%clk 0:02:46.5]} 3... Qxd5 {[%clk
0:03:01.2]} 4. c4 {[%clk 0:02:44.4]} 4... Qd8 {[%clk 0:02:56.3]} 5. Nf3 {[%clk
0:02:43.6]} 5... Nf6 {[%clk 0:02:56.2]} 6. Nc3 {[%clk 0:02:42.2]} 6... g6 {[%clk
0:02:53.8]} 7. Be2 {[%clk 0:02:39.9]} 7... Bg7 {[%clk 0:02:53.9]} 8. O-O {[%clk
0:02:40.6]} 8... O-O {[%clk 0:02:54.1]} 9. h3 {[%clk 0:02:39.4]} 9... b6 {[%clk
0:02:50.5]} 10. Ne5 {[%clk 0:02:33.4]} 10... Bb7 {[%clk 0:02:46.7]} 11. Bf3
{[%clk 0:02:31.5]} 11... Qc8 {[%clk 0:02:45.8]} 12. Qe2 {[%clk 0:02:18.9]} 12...
e6 {[%clk 0:02:40.7]} 13. Bf4 {[%clk 0:02:14.1]} 13... Nfd7 {[%clk 0:02:29.4]}
14. Bxb7 {[%clk 0:01:50]} 14... Qxb7 {[%clk 0:02:28.5]} 15. Nf3 {[%clk
0:01:50.7]} 15... Nc6 {[%clk 0:01:49.5]} 16. Rad1 {[%clk 0:01:48.5]} 16... Rae8
{[%clk 0:01:47.3]} 17. Bg3 {[%clk 0:01:42.1]} 17... e5 {[%clk 0:01:43.8]} 18.
dxe5 {[%clk 0:01:26.3]} 18... Ndxe5 {[%clk 0:01:41.2]} 19. Nd5 {[%clk
0:01:23.5]} 19... b5 {[%clk 0:01:17.4]} 20. cxb5 {[%clk 0:01:22.2]} 20... Qxb5
{[%clk 0:01:14.3]} 21. Qxb5 {[%clk 0:01:22.2]} 21... Nxf3+ {[%clk 0:01:14.5]}
22. gxf3 {[%clk 0:01:22]} 22... axb5 {[%clk 0:01:15.4]} 23. Nxc7 {[%clk
0:01:22]} 23... Re2 {[%clk 0:01:15.5]} 24. Nxb5 {[%clk 0:01:11.9]} 24... Rxb2
{[%clk 0:01:14.4]} 25. a4 {[%clk 0:01:12.5]} 25... Ra2 {[%clk 0:01:02.6]} 26.
Rc1 {[%clk 0:00:55.7]} 26... Nd4 {[%clk 0:00:30.7]} 27. Nxd4 {[%clk 0:00:54.3]}
27... Bxd4 {[%clk 0:00:31.6]} 28. Rc4 {[%clk 0:00:55.1]} 28... Bf6 {[%clk
0:00:29.3]} 29. Rb1 {[%clk 0:00:49.4]} 29... h5 {[%clk 0:00:23.4]} 30. Rb6
{[%clk 0:00:38.6]} 30... Kg7 {[%clk 0:00:22.1]} 31. Rb7 {[%clk 0:00:39.2]} 31...
h4 {[%clk 0:00:14.5]} 32. Bf4 {[%clk 0:00:25.3]} 32... g5 {[%clk 0:00:08.8]} 33.
Be3 {[%clk 0:00:25.3]} 33... Rd8 {[%clk 0:00:07.4]} 34. Kg2 {[%clk 0:00:22.3]}
34... Re8 {[%clk 0:00:05.3]} 35. Bc5 {[%clk 0:00:16.8]} 35... Re1 {[%clk
0:00:05]} 36. f4 {[%clk 0:00:15.5]} 36... gxf4 {[%clk 0:00:02.9]} 37. Rxf4
{[%clk 0:00:16.4]} 37... Ree2 {[%clk 0:00:02.9]} 38. Kf3 {[%clk 0:00:12]} 38...
Rec2 {[%clk 0:00:02.5]} 39. Be3 {[%clk 0:00:12.6]} 39... Be5 {[%clk 0:00:01.8]}
40. Rfxf7+ {[%clk 0:00:12.3]} 40... Kg6 {[%clk 0:00:02.4]} 41. Rfe7 {[%clk
0:00:12.9]} 41... Bf6 {[%clk 0:00:02.8]} 42. Re6 {[%clk 0:00:13.4]} 42... Kf5
{[%clk 0:00:03.2]} 43. Ra6 {[%clk 0:00:13.8]} 43... Rc4 {[%clk 0:00:03.3]} 44.
Rb5+ {[%clk 0:00:14.2]} 44... Be5 {[%clk 0:00:03]} 45. Rh6 {[%clk 0:00:11.6]}
1-0